[Event "35th Roquetas Festival 2024"]
[Site "Roquetas de Mar"]
[Date "2024.01.03"]
[Round "3.21"]
[White "Ferro Martinez, Damian"]
[Black "Vingris, Mikelis"]
[Result "1/2-1/2"]
[ECO "B51"]
[WhiteElo "1858"]
[BlackElo "2248"]
[Annotator "RC"]
[PlyCount "127"]
[EventDate "2024.01.02"]
[EventType "swiss"]
[EventCountry "ESP"]
[SourceTitle "playchess.com"]
[Source "ChessBase"]
[SourceQuality "1"]
[TimeControl "5400+30"]

1. e4 {[%emt 0:14:15]} c5 {[%emt 0:00:02]} 2. Nf3 {[%emt 0:00:41]} d6 {[%emt 0:00:05]} 3. Bb5+ {[%emt 0:00:38]} Nd7 {[%emt 0:01:01]} 4. c3 {[%emt 0:00:15]} Ngf6 {[%emt 0:01:52]} 5. Qe2 {[%emt 0:01:54]} e6 {[%emt 0:04:16]} 6. d4 {[%emt 0:01:13]} cxd4 {[%emt 0:01:43]} 7. cxd4 {[%emt 0:00:17]} Be7 {[%emt 0:04:27]} 8. Nc3 {[%emt 0:00:21]} a6 {[%emt 0:04:51]} 9. Bd3 {[%emt 0:00:10]} e5 {[%emt 0:07:18]} 10. O-O {[%emt 0:07:02]} O-O {[%emt 0:01:24]} 11. Be3 {[%emt 0:02:17]} Ng4 {[%emt 0:08:59]} 12. Bd2 {[%emt 0:01:58]} exd4 {[%emt 0:02:08]} 13. Nxd4 {[%emt 0:07:48]} Nc5 {[%emt 0:01:41]} 14. Nd5 {[%emt 0:04:03]} Ne5 {[%emt 0:12:41]} 15. Nxe7+ {[%emt 0:02:26]} Qxe7 {[%emt 0:00:07]} 16. Bc2 {[%emt 0:00:16]} Nc6 {[%emt 0:09:09]} 17. Nxc6 {[%emt 0:03:52]} bxc6 {[%emt 0:00:04]} 18. Bc3 {[%emt 0:00:22]} a5 {[%emt 0:05:50]} 19. Rfe1 {[%emt 0:01:09]} Ne6 {[%emt 0:08:24]} 20. Rad1 {[%emt 0:04:36]} Rd8 {[%emt 0:10:50]} 21. Qd3 {[%emt 0:09:55]} Qh4 22. Re3 {[%emt 0:04:02]} Nf4 {[%emt 0:08:20]} 23. Qd2 {[%emt 0:05:23]} Ba6 {[%emt 0:01:04]} 24. Kh1 {[%emt 0:02:25]} Ng6 {[%emt 0:02:54]} 25. Bxa5 {[%emt 0:04:39]} Rd7 {[%emt 0:00:15]} 26. Bc3 {[%emt 0:01:19]} d5 {[%emt 0:00:36]} 27. Qd4 {[%emt 0:02:05]} f6 {[%emt 0:01:26]} 28. Bb3 {[%emt 0:02:34]} Kh8 {[%emt 0:02:18]} 29. exd5 {[%emt 0:03:28]} Qh5 {[%emt 0:00:11]} 30. Rde1 {[%emt 0:01:36]} Ne5 {[%emt 0:00:24]} 31. f4 {[%emt 0:03:09]} Ng4 {[%emt 0:00:17]} 32. Rh3 {[%emt 0:00:15]} Qf5 {[%emt 0:00:22]} 33. d6 {[%emt 0:02:26]} c5 {[%emt 0:01:27]} 34. Qd2 {[%emt 0:01:55]} c4 {[%emt 0:00:28]} 35. Bc2 {[%emt 0:00:02]} Qc5 {[%emt 0:00:11]} 36. Rxh7+ {[%emt 0:04:11]} Kg8 {[%emt 0:00:03]} 37. h3 {[%emt 0:00:35]} Rxd6 {[%emt 0:00:38]} 38. Qe2 {[%emt 0:00:36]} Nf2+ {[%emt 0:00:38]} 39. Kh2 {[%emt 0:00:11]} Nd3 {[%emt 0:00:08]} 40. Rh5 {[%emt 0:02:59]} Qc6 {[%emt 0:00:15]} 41. Rf1 {[%emt 0:00:25]} Re8 42. Qg4 {[%emt 0:00:07]} Bb7 {[%emt 0:01:34]} 43. b3 {[%emt 0:00:29]} Qxg2+ {[%emt 0:00:18]} 44. Qxg2 {[%emt 0:00:10]} Bxg2 {[%emt 0:00:03]} 45. Bxd3 Rxd3 {[%emt 0:00:05]} 46. Kxg2 {[%emt 0:01:43]} Rxc3 {[%emt 0:00:43]} 47. bxc4 {[%emt 0:00:22]} Re2+ {[%emt 0:01:14]} 48. Rf2 {[%emt 0:00:02]} Rxf2+ {[%emt 0:00:07]} 49. Kxf2 {[%emt 0:00:02]} Rxc4 {[%emt 0:00:04]} 50. Kg3 {[%emt 0:00:57]} Ra4 {[%emt 0:00:06]} 51. Rb5 {[%emt 0:00:23]} Rxa2 {[%emt 0:00:05]} 52. Rb7 {[%emt 0:00:08]} Kh7 {[%emt 0:00:23]} 53. Rc7 {[%emt 0:00:13]} Ra1 {[%emt 0:00:39]} 54. Rb7 {[%emt 0:00:23]} Rg1+ {[%emt 0:00:34]} 55. Kf2 {[%emt 0:00:12]} Rh1 {[%emt 0:00:36]} 56. Kg2 {[%emt 0:00:09]} Rc1 {[%emt 0:00:05]} 57. Kg3 {[%emt 0:00:27]} Kg6 {[%emt 0:00:04]} 58. Rb5 {[%emt 0:00:09]} Kh6 {[%emt 0:01:02]} 59. Ra5 {[%emt 0:00:12]} g6 {[%emt 0:00:54]} 60. Rb5 {[%emt 0:01:01]} Rc3+ {[%emt 0:00:35]} 61. Kg2 {[%emt 0:00:08]} f5 {[%emt 0:00:30]} 62. Ra5 {[%emt 0:00:44]} Rc7 {[%emt 0:00:45]} 63. Ra8 {[%emt 0:00:18]} Rc2+ {[%emt 0:00:45]} 64. Kg3 {[%emt 0:00:09]} 1/2-1/2

[Event "35th Roquetas Festival 2024"]
[Site "Roquetas de Mar"]
[Date "2024.01.03"]
[Round "3.22"]
[White "Valdats, Reinis"]
[Black "Deusa Ballesteros, Lucas"]
[Result "1/2-1/2"]
[ECO "B76"]
[WhiteElo "2143"]
[BlackElo "1887"]
[Annotator "NA RC"]
[PlyCount "71"]
[EventDate "2024.01.02"]
[EventType "swiss"]
[EventCountry "ESP"]
[SourceTitle "playchess.com"]
[Source "ChessBase"]
[SourceQuality "1"]
[TimeControl "5400+30"]

1. e4 {[%emt 0:00:01]} c5 {[%emt 0:00:12]} 2. Nf3 {[%emt 0:00:05]} d6 {[%emt 0:00:20]} 3. d4 {[%emt 0:00:04]} cxd4 {[%emt 0:00:13]} 4. Nxd4 {[%emt 0:00:02]} Nf6 {[%emt 0:00:33]} 5. Nc3 {[%emt 0:00:05]} g6 {[%emt 0:00:51]} 6. Be3 {[%emt 0:00:06]} Bg7 {[%emt 0:00:41]} 7. f3 {[%emt 0:00:05]} O-O {[%emt 0:00:50]} 8. Qd2 {[%emt 0:00:05]} Nc6 {[%emt 0:00:52]} 9. O-O-O {[%emt 0:01:47]} d5 {[%emt 0:01:05]} 10. exd5 {[%emt 0:03:46]} Nxd5 {[%emt 0:00:29]} 11. Nxc6 {[%emt 0:00:08]} bxc6 {[%emt 0:00:20]} 12. Bd4 {[%emt 0:00:08]} e5 {[%emt 0:05:48]} 13. Bc5 {[%emt 0:00:13]} Be6 {[%emt 0:01:58]} 14. Ne4 {[%emt 0:01:10]} Re8 {[%emt 0:03:30]} 15. Bc4 {[%emt 0:02:36]} Qc7 {[%emt 0:04:30]} 16. Kb1 {[%emt 0:15:27]} Rad8 {[%emt 0:13:00]} 17. Qe1 {[%emt 0:09:59]} h6 {[%emt 0:03:06]} 18. g4 {[%emt 0:05:50]} Rd7 {[%emt 0:05:52]} 19. Rg1 {[%emt 0:03:16]} Red8 {[%emt 0:03:15]} 20. Bb3 {[%emt 0:08:55]} Nf4 {[%emt 0:07:47]} 21. Rxd7 {[%emt 0:00:55]} Qxd7 {[%emt 0:00:54]} 22. Bxe6 {[%emt 0:04:18]} Nxe6 {[%emt 0:01:40]} 23. Be3 {[%emt 0:00:42]} Nf4 {[%emt 0:05:19]} 24. Bxf4 {[%emt 0:06:03]} exf4 {[%emt 0:00:09]} 25. Rf1 {[%emt 0:12:38]} Qd4 {[%emt 0:06:53]} 26. c3 {[%emt 0:01:17]} Qd3+ {[%emt 0:00:44]} 27. Ka1 {[%emt 0:00:53]} Qc2 {[%emt 0:02:21]} 28. a3 {[%emt 0:06:43]} Qxh2 {[%emt 0:10:54]} 29. Kb1 {[%emt 0:01:46]} Rb8 {[%emt 0:03:38]} 30. Rf2 {[%emt 0:02:18]} Qh4 {[%emt 0:00:36]} 31. Qd2 {[%emt 0:00:48]} Rd8 {[%emt 0:06:16]} 32. Qxf4 {[%emt 0:01:04]} f5 {[%emt 0:03:26]} 33. Ng3 {[%emt 0:01:25]} Rf8 {[%emt 0:02:33]} 34. Re2 {[%emt 0:03:06]} fxg4 {[%emt 0:01:37]} 35. Qxg4 {[%emt 0:00:20]} Qxg4 {[%emt 0:00:20]} 36. fxg4 {[%emt 0:00:06]} 1/2-1/2

[Event "35th Roquetas Festival 2024"]
[Site "Roquetas de Mar"]
[Date "2024.01.03"]
[Round "3.23"]
[White "Merario Alarcon, Andres"]
[Black "Lazaro Azcutia, Miguel"]
[Result "1/2-1/2"]
[ECO "D35"]
[WhiteElo "2429"]
[BlackElo "2044"]
[Annotator "RC"]
[PlyCount "102"]
[EventDate "2024.01.02"]
[EventType "swiss"]
[EventCountry "ESP"]
[SourceTitle "playchess.com"]
[Source "ChessBase"]
[SourceQuality "1"]
[TimeControl "5400+30"]

1. d4 {[%emt 0:00:19]} d5 {[%emt 0:00:04]} 2. c4 {[%emt 0:00:11]} e6 {[%emt 0:00:05]} 3. Nc3 {[%emt 0:00:19]} Nf6 {[%emt 0:00:10]} 4. cxd5 {[%emt 0:01:41]} exd5 {[%emt 0:00:08]} 5. Bg5 {[%emt 0:00:07]} c6 {[%emt 0:00:33]} 6. e3 {[%emt 0:00:08]} h6 {[%emt 0:00:31]} 7. Bh4 {[%emt 0:00:17]} Be7 {[%emt 0:00:11]} 8. Bd3 {[%emt 0:00:26]} O-O {[%emt 0:00:15]} 9. f3 {[%emt 0:01:32]} b5 {[%emt 0:05:27]} 10. Nge2 {[%emt 0:00:35]} Bb7 {[%emt 0:03:06]} 11. O-O {[%emt 0:00:33]} a6 {[%emt 0:03:42]} 12. Rc1 {[%emt 0:01:28]} Nbd7 {[%emt 0:03:40]} 13. Bb1 {[%emt 0:03:40]} Rc8 {[%emt 0:06:38]} 14. Bf2 {[%emt 0:03:21]} c5 {[%emt 0:06:42]} 15. dxc5 {[%emt 0:00:18]} Bxc5 {[%emt 0:05:24]} 16. Nd4 {[%emt 0:03:33]} Re8 {[%emt 0:04:30]} 17. Nce2 {[%emt 0:01:44]} Ne5 {[%emt 0:12:54]} 18. b3 {[%emt 0:05:43]} Qb6 {[%emt 0:11:16]} 19. Qd2 {[%emt 0:02:24]} a5 {[%emt 0:02:36]} 20. Qb2 {[%emt 0:08:40]} b4 {[%emt 0:04:55]} 21. Rfd1 {[%emt 0:03:00]} Ba6 {[%emt 0:03:42]} 22. Ng3 {[%emt 0:05:35]} Ned7 {[%emt 0:03:26]} 23. Ndf5 {[%emt 0:05:45]} Bf8 {[%emt 0:10:38]} 24. e4 {[%emt 0:08:28]} Qe6 {[%emt 0:03:54]} 25. exd5 {[%emt 0:11:17]} Nxd5 26. Nd4 {[%emt 0:09:10]} Qf6 {[%emt 0:07:35]} 27. Ne4 {[%emt 0:03:02]} Qf4 {[%emt 0:00:55]} 28. g3 {[%emt 0:02:45]} Rxc1 {[%emt 0:00:46]} 29. Rxc1 {[%emt 0:00:11]} Qe5 {[%emt 0:00:31]} 30. f4 {[%emt 0:02:54]} Qh5 {[%emt 0:00:27]} 31. Bc2 {[%emt 0:02:56]} N7f6 {[%emt 0:00:35]} 32. Nxf6+ {[%emt 0:02:56]} Nxf6 {[%emt 0:00:05]} 33. Bd1 {[%emt 0:00:06]} Qh3 {[%emt 0:00:45]} 34. Bf3 {[%emt 0:02:42]} Ng4 {[%emt 0:00:23]} 35. Bxg4 {[%emt 0:00:20]} Qxg4 {[%emt 0:00:05]} 36. Qc2 {[%emt 0:01:16]} Rc8 {[%emt 0:00:57]} 37. Qd1 {[%emt 0:00:15]} Qd7 {[%emt 0:00:17]} 38. Rxc8 {[%emt 0:00:43]} Bxc8 {[%emt 0:00:10]} 39. Qh5 {[%emt 0:01:22]} Bb7 {[%emt 0:00:58]} 40. Qb5 {[%emt 0:00:52]} Qc7 {[%emt 0:00:11]} 41. Be3 {[%emt 0:00:48]} Qe7 {[%emt 0:01:08]} 42. Qd3 {[%emt 0:03:02]} Ba8 {[%emt 0:00:18]} 43. Kf2 {[%emt 0:02:49]} Qb7 {[%emt 0:00:11]} 44. Ke2 {[%emt 0:00:11]} Qg2+ {[%emt 0:00:31]} 45. Bf2 {[%emt 0:00:02]} Qxh2 {[%emt 0:00:33]} 46. Qf5 {[%emt 0:00:23]} Qg2 {[%emt 0:00:28]} 47. Qxa5 {[%emt 0:00:19]} Qe4+ {[%emt 0:00:11]} 48. Be3 {[%emt 0:00:28]} Qg2+ {[%emt 0:00:20]} 49. Bf2 {[%emt 0:00:11]} Qe4+ {[%emt 0:00:56]} 50. Be3 {[%emt 0:00:37]} Qg2+ {[%emt 0:00:56]} 51. Bf2 {[%emt 0:00:31]} Qe4+ {[%emt 0:00:45]} 1/2-1/2

[Event "35th Roquetas Festival 2024"]
[Site "Roquetas de Mar"]
[Date "2024.01.03"]
[Round "3.24"]
[White "Maldonado Mena, German"]
[Black "Garcia Fernandez, Victor"]
[Result "0-1"]
[ECO "A46"]
[WhiteElo "2074"]
[BlackElo "2366"]
[Annotator "RC"]
[PlyCount "166"]
[EventDate "2024.01.02"]
[EventType "swiss"]
[EventCountry "ESP"]
[SourceTitle "playchess.com"]
[Source "ChessBase"]
[SourceQuality "1"]
[TimeControl "5400+30"]

1. d4 {[%emt 0:00:02]} Nf6 {[%emt 0:00:25]} 2. Nf3 {[%emt 0:00:07]} d5 {[%emt 0:03:50]} 3. g3 {[%emt 0:00:22]} c5 {[%emt 0:00:23]} 4. dxc5 {[%emt 0:04:18]} e6 {[%emt 0:01:19]} 5. Bg2 {[%emt 0:05:50]} Bxc5 {[%emt 0:00:33]} 6. O-O {[%emt 0:00:07]} O-O {[%emt 0:00:07]} 7. c4 {[%emt 0:00:14]} Nc6 {[%emt 0:01:38]} 8. cxd5 {[%emt 0:04:17]} exd5 {[%emt 0:01:17]} 9. Nbd2 {[%emt 0:01:39]} Bb6 {[%emt 0:01:04]} 10. Nb3 {[%emt 0:00:25]} d4 {[%emt 0:07:20]} 11. Bf4 {[%emt 0:04:48]} Re8 {[%emt 0:00:07]} 12. Rc1 {[%emt 0:00:13]} Bf5 {[%emt 0:01:39]} 13. Nc5 {[%emt 0:03:22]} Bxc5 {[%emt 0:19:12]} 14. Rxc5 {[%emt 0:00:39]} Be4 {[%emt 0:00:19]} 15. Rc1 {[%emt 0:13:57]} Qd5 {[%emt 0:02:59]} 16. b3 {[%emt 0:07:00]} Rad8 {[%emt 0:08:31]} 17. Rc4 {[%emt 0:12:13]} h6 {[%emt 0:12:54]} 18. Ne1 {[%emt 0:02:38]} Bxg2 {[%emt 0:02:39]} 19. Nxg2 {[%emt 0:00:07]} Qh5 {[%emt 0:00:08]} 20. Re1 {[%emt 0:08:23]} Qh3 {[%emt 0:08:43]} 21. f3 {[%emt 0:01:31]} g5 {[%emt 0:04:54]} 22. Bc1 {[%emt 0:01:02]} Rd5 {[%emt 0:11:07]} 23. Bb2 {[%emt 0:02:32]} Ne5 {[%emt 0:01:10]} 24. Bxd4 {[%emt 0:14:45]} Neg4 {[%emt 0:02:23]} 25. Qa1 {[%emt 0:00:13]} Qxh2+ {[%emt 0:01:24]} 26. Kf1 {[%emt 0:00:05]} Rf5 {[%emt 0:01:52]} 27. Qb1 {[%emt 0:02:15]} Qh1+ {[%emt 0:00:23]} 28. Bg1 {[%emt 0:00:08]} Nh2+ {[%emt 0:00:16]} 29. Kf2 {[%emt 0:00:06]} Nhg4+ {[%emt 0:00:11]} 30. Kf1 {[%emt 0:00:13]} Nh2+ {[%emt 0:00:02]} 31. Kf2 {[%emt 0:00:06]} Nfg4+ {[%emt 0:00:03]} 32. Rxg4 {[%emt 0:00:10]} Nxg4+ {[%emt 0:00:03]} 33. Kf1 {[%emt 0:00:07]} Nh2+ {[%emt 0:00:14]} 34. Kf2 {[%emt 0:00:05]} Ng4+ {[%emt 0:00:02]} 35. Kf1 {[%emt 0:00:05]} Qh3 {[%emt 0:00:44]} 36. Rd1 {[%emt 0:01:29]} Ne5 {[%emt 0:01:48]} 37. Qe4 {[%emt 0:00:16]} Rf6 {[%emt 0:01:17]} 38. Bxa7 {[%emt 0:02:15]} Qe6 {[%emt 0:01:17]} 39. Bd4 {[%emt 0:01:56]} Rg6 {[%emt 0:02:04]} 40. Qxb7 {[%emt 0:00:47]} Nc6 {[%emt 0:00:47]} 41. Be3 {[%emt 0:01:29]} f5 {[%emt 0:00:54]} 42. Qd7 {[%emt 0:01:05]} Qxd7 {[%emt 0:00:48]} 43. Rxd7 {[%emt 0:00:06]} Ne5 {[%emt 0:00:04]} 44. Ra7 {[%emt 0:00:27]} Rd6 {[%emt 0:00:30]} 45. Kf2 {[%emt 0:00:41]} Rc8 {[%emt 0:00:16]} 46. Ra5 {[%emt 0:00:43]} Re6 {[%emt 0:00:20]} 47. Bd4 Nc6 {[%emt 0:00:16]} 48. Rc5 {[%emt 0:01:50]} Ra8 {[%emt 0:00:11]} 49. Be3 {[%emt 0:00:07]} Rxa2 {[%emt 0:00:41]} 50. Rd5 {[%emt 0:03:23]} Rb2 {[%emt 0:00:26]} 51. Rd3 {[%emt 0:00:08]} Nb4 {[%emt 0:00:49]} 52. Rd8+ {[%emt 0:00:26]} Kf7 {[%emt 0:00:07]} 53. f4 {[%emt 0:00:42]} Nc6 {[%emt 0:02:32]} 54. Rd3 {[%emt 0:00:22]} Kg6 {[%emt 0:00:12]} 55. Rd5 {[%emt 0:03:43]} Rxb3 {[%emt 0:00:36]} 56. g4 Ne7 {[%emt 0:00:22]} 57. Rc5 {[%emt 0:01:01]} Rb4 {[%emt 0:00:56]} 58. Ra5 {[%emt 0:01:48]} Rbe4 {[%emt 0:00:05]} 59. Rc5 {[%emt 0:00:19]} Ra4 {[%emt 0:01:25]} 60. Rb5 {[%emt 0:00:08]} Rf6 {[%emt 0:00:21]} 61. fxg5 {[%emt 0:01:02]} hxg5 {[%emt 0:00:08]} 62. gxf5+ {[%emt 0:00:40]} Nxf5 {[%emt 0:00:03]} 63. Rb6 {[%emt 0:00:31]} Nxe3+ {[%emt 0:01:09]} 64. Rxf6+ {[%emt 0:00:06]} Kxf6 {[%emt 0:00:04]} 65. Nxe3 {[%emt 0:00:07]} Ke5 {[%emt 0:00:18]} 66. Kf3 {[%emt 0:00:22]} Ra3 {[%emt 0:00:06]} 67. Kf2 {[%emt 0:00:06]} Ke4 {[%emt 0:00:31]} 68. Nc4 {[%emt 0:01:06]} Rc3 {[%emt 0:00:37]} 69. Nd2+ {[%emt 0:00:47]} Kf4 {[%emt 0:00:01]} 70. Nf1 {[%emt 0:00:40]} Rh3 {[%emt 0:00:14]} 71. Kg2 {[%emt 0:00:26]} Rh8 {[%emt 0:00:06]} 72. Ng3 {[%emt 0:00:32]} Ke3 {[%emt 0:00:22]} 73. Kf1 {[%emt 0:00:44]} Rf8+ {[%emt 0:01:49]} 74. Kg1 {[%emt 0:00:12]} Rf4 {[%emt 0:00:33]} 75. Kg2 {[%emt 0:00:16]} Ra4 {[%emt 0:01:14]} 76. Kf1 {[%emt 0:01:00]} Rg4 {[%emt 0:00:12]} 77. Nf5+ {[%emt 0:00:14]} Ke4 {[%emt 0:00:12]} 78. Ne7 {[%emt 0:00:28]} Ke5 {[%emt 0:00:35]} 79. Kf2 {[%emt 0:00:22]} Ke6 {[%emt 0:00:19]} 80. Nc6 {[%emt 0:00:13]} Rc4 {[%emt 0:00:20]} 81. Nd8+ {[%emt 0:00:34]} Kd7 {[%emt 0:00:19]} 82. Nb7 {[%emt 0:00:07]} Kc7 {[%emt 0:00:16]} 83. Na5 {[%emt 0:00:06]} Rb4 {[%emt 0:00:04]} 0-1

[Event "35th Roquetas Festival 2024"]
[Site "Roquetas de Mar"]
[Date "2024.01.03"]
[Round "3.25"]
[White "Bru Rullo, Llatzer"]
[Black "Arce Gonzalez, Dario"]
[Result "1-0"]
[ECO "E24"]
[WhiteElo "2278"]
[BlackElo "2037"]
[Annotator "RC"]
[PlyCount "65"]
[EventDate "2024.01.02"]
[EventType "swiss"]
[EventCountry "ESP"]
[SourceTitle "playchess.com"]
[Source "ChessBase"]
[SourceQuality "1"]
[TimeControl "5400+30"]

1. d4 {[%emt 0:00:02]} Nf6 {[%emt 0:00:27]} 2. c4 {[%emt 0:00:14]} e6 {[%emt 0:00:17]} 3. Nc3 {[%emt 0:00:19]} Bb4 {[%emt 0:00:14]} 4. a3 {[%emt 0:00:50]} Bxc3+ {[%emt 0:00:30]} 5. bxc3 {[%emt 0:00:11]} c5 {[%emt 0:00:43]} 6. f3 {[%emt 0:00:07]} O-O {[%emt 0:07:39]} 7. e4 {[%emt 0:00:15]} Ne8 {[%emt 0:02:25]} 8. f4 {[%emt 0:07:41]} f5 {[%emt 0:02:10]} 9. e5 {[%emt 0:00:20]} Qe7 {[%emt 0:11:00]} 10. Nf3 {[%emt 0:04:10]} b6 {[%emt 0:03:27]} 11. a4 {[%emt 0:05:15]} Nc6 {[%emt 0:00:50]} 12. d5 {[%emt 0:06:33]} Na5 {[%emt 0:00:14]} 13. d6 {[%emt 0:00:19]} Qd8 {[%emt 0:02:04]} 14. Bd3 {[%emt 0:00:25]} Ba6 {[%emt 0:02:04]} 15. Nd2 {[%emt 0:06:24]} g6 {[%emt 0:05:56]} 16. O-O {[%emt 0:01:38]} Ng7 17. Nb3 {[%emt 0:03:57]} Rb8 {[%emt 0:18:08]} 18. Nxa5 {[%emt 0:07:23]} bxa5 {[%emt 0:00:02]} 19. Be3 {[%emt 0:01:15]} Qc8 {[%emt 0:01:08]} 20. Be2 {[%emt 0:07:40]} Rb2 {[%emt 0:06:51]} 21. Rb1 {[%emt 0:03:52]} Rxb1 {[%emt 0:02:40]} 22. Qxb1 {[%emt 0:00:04]} Qc6 {[%emt 0:01:26]} 23. Qc2 {[%emt 0:04:27]} Rb8 {[%emt 0:02:47]} 24. Rb1 Rb6 {[%emt 0:03:26]} 25. Rb5 {[%emt 0:14:49]} Bxb5 {[%emt 0:02:43]} 26. cxb5 {[%emt 0:01:48]} Qc8 {[%emt 0:01:59]} 27. c4 {[%emt 0:00:50]} Ne8 {[%emt 0:02:45]} 28. Qd2 {[%emt 0:00:44]} Kf7 {[%emt 0:00:39]} 29. Qxa5 {[%emt 0:00:52]} Nxd6 {[%emt 0:00:23]} 30. exd6 {[%emt 0:00:59]} Rxd6 {[%emt 0:00:36]} 31. Qxa7 {[%emt 0:00:51]} Qh8 {[%emt 0:00:48]} 32. Qxc5 {[%emt 0:03:28]} Ke7 {[%emt 0:00:41]} 33. Qe5 {[%emt 0:00:53]} 1-0

[Event "35th Roquetas Festival 2024"]
[Site "Roquetas de Mar"]
[Date "2024.01.03"]
[Round "3.26"]
[White "Montesinos Diaz, Luis"]
[Black "Garijo Perez, Hugo"]
[Result "0-1"]
[ECO "B42"]
[WhiteElo "2050"]
[BlackElo "2270"]
[Annotator "RC"]
[PlyCount "61"]
[EventDate "2024.01.02"]
[EventType "swiss"]
[EventCountry "ESP"]
[SourceTitle "playchess.com"]
[Source "ChessBase"]
[SourceQuality "1"]
[TimeControl "5400+30"]

1. e4 {[%emt 0:00:23]} c5 {[%emt 0:00:33]} 2. Nf3 {[%emt 0:00:23]} e6 {[%emt 0:00:05]} 3. d4 {[%emt 0:00:06]} cxd4 {[%emt 0:00:03]} 4. Nxd4 {[%emt 0:00:02]} a6 {[%emt 0:00:06]} 5. Bd3 {[%emt 0:00:47]} Bc5 {[%emt 0:00:08]} 6. Nb3 {[%emt 0:00:13]} Ba7 {[%emt 0:00:01]} 7. c4 {[%emt 0:00:40]} Nc6 {[%emt 0:00:06]} 8. Nc3 {[%emt 0:00:36]} Nf6 {[%emt 0:00:10]} 9. O-O {[%emt 0:01:02]} O-O {[%emt 0:00:17]} 10. Qe2 {[%emt 0:00:46]} d6 {[%emt 0:00:17]} 11. Be3 {[%emt 0:01:50]} Nb4 {[%emt 0:01:12]} 12. Bxa7 {[%emt 0:05:50]} Rxa7 {[%emt 0:00:33]} 13. Rad1 {[%emt 0:04:55]} b6 {[%emt 0:08:20]} 14. Bb1 {[%emt 0:04:53]} Rd7 {[%emt 0:02:09]} 15. f4 {[%emt 0:03:54]} Qc7 {[%emt 0:11:49]} 16. a3 {[%emt 0:04:54]} Nc6 {[%emt 0:00:10]} 17. g4 {[%emt 0:00:59]} g6 {[%emt 0:07:02]} 18. Rd3 {[%emt 0:08:29]} b5 {[%emt 0:07:23]} 19. cxb5 {[%emt 0:05:59]} axb5 {[%emt 0:01:02]} 20. g5 {[%emt 0:02:07]} Nh5 {[%emt 0:02:11]} 21. Rh3 {[%emt 0:02:38]} b4 {[%emt 0:03:50]} 22. Rxh5 {[%emt 0:10:51]} bxc3 {[%emt 0:03:47]} 23. Rh3 {[%emt 0:02:32]} Qb6+ {[%emt 0:02:22]} 24. Qf2 {[%emt 0:00:57]} Qxb3 {[%emt 0:02:10]} 25. Qh4 {[%emt 0:03:33]} f5 {[%emt 0:00:21]} 26. exf5 {[%emt 0:00:44]} exf5 {[%emt 0:01:03]} 27. Rxc3 {[%emt 0:00:09]} Qb6+ {[%emt 0:00:42]} 28. Kg2 {[%emt 0:01:30]} Bb7 {[%emt 0:01:28]} 29. Qe1 {[%emt 0:02:49]} Re7 {[%emt 0:02:01]} 30. Qd2 {[%emt 0:01:02]} Re2+ {[%emt 0:00:38]} 31. Kf3 0-1

[Event "35th Roquetas Festival 2024"]
[Site "Roquetas de Mar"]
[Date "2024.01.04"]
[Round "4.1"]
[White "Stremavicius, Pijus"]
[Black "Grigoryan, Karen H."]
[Result "0-1"]
[ECO "C01"]
[WhiteElo "2393"]
[BlackElo "2643"]
[Annotator "TA"]
[PlyCount "62"]
[EventDate "2024.01.02"]
[EventType "swiss"]
[EventCountry "ESP"]
[SourceTitle "playchess.com"]
[Source "ChessBase"]
[SourceQuality "1"]
[TimeControl "5400+30"]

{[%evp 16,62,6,8,21,10,20,0,0,0,0,0,0,0,0,0,0,0,0,-63,-64,-56,-53,-60,-68,-47,-54,-57,-63,-99,-109,-112,-97,-151,-149,-153,-164,-188,-191,-186,-178,-187,-192,-243,-250,-260,-253,-29990,-29991]} 1. e4 {[%emt 0:05:57]} e6 {[%emt 0:00:47]} 2. d4 {[%emt 0:00:06]} d5 {[%emt 0:00:06]} 3. exd5 {[%emt 0:00:03]} exd5 {[%emt 0:00:04]} 4. Nf3 {[%emt 0:00:03]} Bd6 {[%emt 0:00:06]} 5. c4 {[%emt 0:00:04]} Nf6 {[%emt 0:00:48]} 6. Nc3 {[%emt 0:00:11]} dxc4 {[%emt 0:01:37]} 7. Bxc4 {[%emt 0:00:05]} O-O {[%emt 0:00:10]} 8. O-O {[%emt 0:00:04]} Nc6 {[%emt 0:00:35]} 9. Bg5 {[%emt 0:04:57]} h6 {[%emt 0:00:49] D20: Queen's Gambit Accepted: 3 e3 and 3 e4.} 10. Bh4 {[%emt 0:00:34]} Bg4 {[%emt 0:15:45]} 11. h3 {[%emt 0:00:15]} Bxf3 {[%emt 0:01:22] The position is equal.} 12. Qxf3 {[%emt 0:00:25]} g5 {[%emt 0:00:31] was the old line (12...Nxd4).} 13. Bg3 {[%emt 0:05:36]} Bxg3 {[%emt 0:00:35]} ({Don't do} 13... Nxd4 14. Qd3 $16) 14. Qxg3 {[%emt 0:00:17]} Qxd4 {[%emt 0:00:16]} 15. Bb3 {[%emt 0:00:39]} Qf4 {[%emt 0:05:33]} 16. Qxf4 {[%emt 0:01:33]} gxf4 {[%emt 0:00:06]} 17. Nd5 {[%emt 0:00:33]} (17. Rfd1 $11) 17... Nxd5 $15 {[%emt 0:00:35]} 18. Bxd5 {[%emt 0:00:02]} Nd4 {[%emt 0:01:09] [#]} 19. Rfd1 $146 {[%emt 0:03:49]} ({Predecessor:} 19. Rad1 c5 20. Rfe1 Rfd8 21. Re5 Rd7 22. Rde1 Rad8 23. Bf3 Nxf3+ 24. gxf3 Rd2 25. Rxc5 Rxb2 {0-1 Schekachikhin,M (2321)-Westerberg,J (2497) Rilton Cup 45th 2015 (8)}) 19... c5 {[%emt 0:00:35]} 20. Bxb7 {[%emt 0:00:23]} Rab8 {[%emt 0:00:11]} 21. Ba6 {[%emt 0:00:08]} Rxb2 {[%emt 0:00:34]} 22. Rac1 {[%emt 0:02:13]} Rd8 {[%emt 0:00:59]} 23. Bd3 {[%emt 0:08:42]} Rd5 {[%emt 0:01:31]} 24. Kf1 {[%emt 0:04:55] [#]} (24. Rb1 $142 Rb6 25. Bc4) 24... f3 $1 $17 {[%emt 0:07:00] aiming for ...Ne2.} (24... Rxa2 $2 25. Bc4 $18) 25. gxf3 {[%emt 0:16:35]} Rh5 {[%emt 0:00:50] Black is much more active.} (25... Rxa2 $2 26. Bc4 $18) 26. Be4 {[%emt 0:06:09]} Rxh3 {[%emt 0:02:07] Strongly threatening ...Rh2.} ({Weaker is} 26... Rxa2 27. Ra1 Rxh3 28. Kg2 Rxa1 29. Rxa1) 27. Kg2 {[%emt 0:00:03] Inhibits Rh2+.} Rh5 {[%emt 0:00:18]} 28. Rb1 {[%emt 0:00:03]} Rxa2 {[%emt 0:01:35] ...Rg5+ is the strong threat.} 29. Ra1 {[%emt 0:00:22]} (29. f4 {was necessary.}) 29... Rg5+ $19 {[%emt 0:01:12]} 30. Kf1 {[%emt 0:00:06]} Rb2 {[%emt 0:00:29] ( -> ...Ne2)} 31. Rxa7 $2 {[%emt 0:00:19] [#]} (31. Rdb1 $19 Rxb1+ 32. Rxb1) 31... Ne2 $1 {[%emt 0:01:53] Weighted Error Value: White=0.44/Black=0.01 (flawless)} 0-1